fUST/lending_fUST_20240415
["ID","MTS","AMOUNT","RATE_DAILY","PERIOD"]
[322616008,1713121841389,-1296.71,0.00038356,7]
[322616010,1713121841398,-500.0,0.00038356,7]
[322616012,1713121841407,-151.0,0.00038356,2]
[322616014,1713121841417,-500.0,0.00038356,7]
[322616016,1713121841426,-151.0,0.00038356,2]
[322616018,1713121841434,-151.0,0.00038356,2]
[322616020,1713121841443,-500.0,0.00038356,7]
[322616022,1713121841453,-354.08879228,0.00038356,7]
[322616024,1713121841462,-1000.0,0.00038356,2]
[322616026,1713121841471,-500.0,0.00038356,7]
[322616028,1713121841480,-502.32982233,0.00038356,7]
[322616030,1713121841490,-501.3895494,0.00038356,7]
[322616032,1713121841499,-500.0,0.00038356,7]
[322616034,1713121841509,-537.25998504,0.00038356,2]
[322616036,1713121841518,-488.58822106,0.00038356,7]
[322616038,1713121841527,-500.0,0.00038356,7]
[322616040,1713121841536,-500.0,0.00038356,7]
[322616042,1713121841545,-693.01,0.00038356,7]
[322616044,1713121841554,-500.0,0.00038356,7]
[322616046,1713121841563,-608.28205562,0.00038356,7]
[322616048,1713121841572,-500.0,0.00038356,7]
[322616049,1713121841582,-500.0,0.00038356,7]
[322616058,1713121841707,-577.30451166,0.00038356,7]
[322616059,1713121841718,-239.39344262,0.00038356,7]
[322616060,1713121841727,-500.0,0.00038356,7]
[322616061,1713121841736,-500.0,0.00038356,7]
[322616062,1713121841745,-500.0,0.00038356,7]
[322616063,1713121841755,-500.0,0.00038356,7]
[322616064,1713121841764,-500.0,0.00038356,7]
[322616066,1713121841773,-500.0,0.00038356,7]
[322616068,1713121841782,-500.0,0.00038356,7]
[322616070,1713121841791,-500.0,0.00038356,7]
[322616072,1713121841801,-198.47820871,0.00038356,7]
[322616074,1713121841810,-500.0,0.00038356,7]
[322616076,1713121841820,-500.0,0.00038356,7]
[322616078,1713121841834,-636.34,0.00038356,7]
[322616080,1713121841843,-500.0,0.00038356,7]
[322616082,1713121841852,-500.0,0.00038356,7]
[322616084,1713121841861,-500.0,0.00038356,7]
[322616086,1713121841870,-500.0,0.00038356,7]
[322616088,1713121841879,-500.0,0.00038356,7]
[322616090,1713121841888,-535.26839097,0.00038356,7]
[322616092,1713121841897,-500.0,0.00038356,7]
[322616093,1713121841910,-500.0,0.00038356,7]
[322616095,1713121841919,-500.0,0.00038356,7]
[322616097,1713121841929,-500.0,0.00038356,7]
[322616099,1713121841938,-1559.19,0.00038356,7]
[322616101,1713121841948,-500.0,0.00038356,7]
[322616103,1713121841957,-500.0,0.00038356,7]
[322616105,1713121841966,-151.0,0.00038356,2]
[322616107,1713121841975,-500.0,0.00038356,7]
[322616109,1713121841985,-151.0,0.00038356,2]
[322616111,1713121841994,-151.0,0.00038356,2]
[322616113,1713121842003,-151.0,0.00038356,2]
[322616115,1713121842012,-12.35063316,0.00038356,7]
[322616127,1713121842124,-487.64936684,0.00038356,7]
[322616129,1713121842134,-156.25063316,0.00038356,7]
[322616134,1713121842173,-343.74936684,0.00038356,7]
[322616136,1713121842182,-500.0,0.00038356,7]
[322616138,1713121842192,-501.65866716,0.00038356,7]
[322616140,1713121842201,-1263.097762,0.00038356,2]
[322616142,1713121842210,-500.0,0.00038356,7]
[322616144,1713121842219,-1263.097762,0.00038356,2]
[322616146,1713121842228,-1263.097762,0.00038356,2]
[322616148,1713121842237,-1263.097762,0.00038356,2]
[322616150,1713121842246,-1263.097762,0.00038356,2]
[322616152,1713121842255,-1263.097762,0.00038356,2]
[322616154,1713121842263,-324.42753976,0.00038356,2]
[322616157,1713121842277,-938.67022224,0.00038356,2]
[322616159,1713121842286,-1263.097762,0.00038356,2]
[322616161,1713121842295,-500.0,0.00038356,7]
[322616163,1713121842304,-500.0,0.00038356,7]
[322616165,1713121842313,-605.99969664,0.00038356,7]
[322616167,1713121842322,-500.0,0.00038356,7]
[322616169,1713121842333,-500.0,0.00038356,7]
[322616171,1713121842342,-531.83321912,0.00038356,2]
[322616173,1713121842355,-874.56921188,0.00038356,2]
[322616175,1713121842365,-1406.402431,0.00038356,2]
[322616177,1713121842374,-1406.402431,0.00038356,2]
[322616179,1713121842383,-151.0,0.00038356,2]
[322616182,1713121842393,-151.0,0.00038356,2]
[322616185,1713121842402,-151.0,0.00038356,2]
[322616187,1713121842411,-1406.402431,0.00038356,2]
[322616189,1713121842420,-1406.402431,0.00038356,2]
[322616192,1713121842429,-1406.402431,0.00038356,2]
[322616195,1713121842438,-1084.34558312,0.00038356,7]
[322616198,1713121842451,-340.91441688,0.00038356,7]
[322616200,1713121842460,-595.25244842,0.00038356,7]
[322616202,1713121842469,-725.75,0.00038356,7]
[322616204,1713121842478,-500.0,0.00038356,7]
[322616207,1713121842487,-500.0,0.00038356,7]
[322616210,1713121842496,-3460.17,0.00038356,7]
[322616212,1713121842506,-204.150798,0.00038356,2]
[322616213,1713121842515,-204.150798,0.00038356,2]
[322616215,1713121842524,-500.0,0.00038356,7]
[322616217,1713121842534,-204.150798,0.00038356,2]
[322616220,1713121842543,-14408.44,0.00038356,7]
[322616224,1713121842552,-204.150798,0.00038356,2]
[322616227,1713121842561,-500.0,0.00038356,7]
[322616230,1713121842570,-204.150798,0.00038356,2]
[322616231,1713121842581,-204.150798,0.00038356,2]
[322616234,1713121842590,-1870.29,0.00038356,7]
[322616237,1713121842599,-155.14386601,0.00038356,7]
[322616239,1713121842609,-500.0,0.00038356,7]
[322616241,1713121842618,-2514.83,0.00038356,7]
[322616242,1713121842628,-500.0,0.00038356,7]
[322616243,1713121842637,-556.61,0.00038356,7]
[322616245,1713121842647,-711.198278,0.00038356,2]
[322616247,1713121842656,-711.198278,0.00038356,2]
[322616249,1713121842665,-711.198278,0.00038356,2]
[322616251,1713121842675,-527.5,0.00038356,7]
[322616252,1713121842684,-437.18605372,0.00038356,7]
[322616332,1713121889909,797.68297667,0.0003452,4]
[322616333,1713121889934,126.07980285,0.0003452,4]
[322616336,1713121922240,300.000001,0.00042008,30]
[322616338,1713121945007,179.032836,0.00027397,2]
[322616339,1713121945630,6247.77496407,0.0003452,4]
[322616340,1713122137070,1000.0,0.000241,3]
[322616343,1713122260064,300.0,0.000251,5]
[322616344,1713122311629,321.47209972,0.000251,5]
[322616359,1713122744194,-154.79876161,0.00027378,2]
[322616360,1713122744216,-185.83605706,0.00027379,2]
[322616361,1713122744235,-1454.94812305,0.00027379,2]
[322616369,1713122816108,-877.42260887,0.00027374,2]
[322616370,1713122829100,-953.50598159,0.00027373,2]
[322616371,1713122829122,-300.0,0.00027373,2]
[322616372,1713122829142,-300.0,0.00027373,2]
[322616373,1713122829162,-978.19363666,0.00027374,2]
[322616374,1713122829184,-1170.91277883,0.00027374,2]
[322616376,1713122945703,-887.82162217,0.0002727,2]
[322616377,1713122945728,-156.991571,0.00027271,2]
[322616378,1713122945753,-298.18680683,0.00027365,2]
[322616379,1713122946115,-1.81319317,0.00027365,2]
[322616380,1713122946136,-300.0,0.00027365,2]
[322616381,1713122946159,-16910.67506417,0.00027366,7]
[322616382,1713122946180,-2769.3607029,0.00027367,2]
[322616383,1713122946200,-248.21678976,0.00027378,2]
[322616384,1713122947095,-2370.92700387,0.00027378,2]
[322616385,1713122947115,-161.251722,0.00027397,2]
[322616386,1713122947136,-420.0,0.00029574,2]
[322616387,1713122947157,-156.99157096,0.00030017,2]
[322616388,1713122947176,-420.0,0.00030102,2]
[322616389,1713122947199,-587.0,0.0003196,2]
[322616390,1713122947222,-166.666666,0.00032506,2]
[322616391,1713122947243,-156.99157096,0.00032764,2]
[322616392,1713122947266,-587.0,0.00033112,2]
[322616393,1713122947285,-200.0,0.00033347,2]
[322616394,1713122947305,-166.666666,0.00033392,2]
[322616395,1713122947324,-166.666666,0.00034278,2]
[322616396,1713122947344,-267.0,0.0003454,2]
[322616397,1713122949120,-166.666666,0.00035164,2]
[322616398,1713122949140,-368.07521709,0.00035307,2]
[322616399,1713122949161,-195.238314,0.00035368,2]
[322616400,1713122949181,-188.43765363,0.00035416,2]
[322616401,1713122949212,1228.47214928,0.00029573,2]
[322616402,1713122949232,737.817511,0.00029573,2]
[322616403,1713122951398,162.38121,0.00027397,2]
[322616408,1713122968955,1746.73949027,0.00028765,7]
[322616409,1713122968975,9527.04388584,0.00028765,7]
[322616414,1713122984951,754.58576267,0.00028765,7]
[322616415,1713122984972,1216.6751088,0.00028765,7]
[322616416,1713122984991,6345.07932368,0.00028765,7]
[322616417,1713122985012,597.6012476,0.00028765,7]
[322616418,1713122985033,480.87803734,0.00028765,7]
[322616420,1713123000432,793.14808599,0.00027473,2]
[322616421,1713123000872,414.43387667,0.00032473,2]
[322616422,1713123000963,500.0,0.00028765,7]
[322616466,1713123032226,-553.05251416,0.00028765,7]
[322616467,1713123032242,-3841.64843497,0.00028765,7]
[322616468,1713123032253,-509.10792639,0.00032472,4]
[322616469,1713123032262,-378.71420932,0.00032473,2]
[322616470,1713123032271,-156.99157096,0.0003551,2]
[322616471,1713123032281,-176.943579,0.00035596,2]
[322616472,1713123032290,-799.11551331,0.00036038,2]
[322616473,1713123032299,-166.666666,0.00036051,2]
[322616474,1713123032307,-195.238314,0.00036431,2]
[322616475,1713123032318,-553.05251416,0.00036436,4]
[322616476,1713123032326,-166.666666,0.00036937,2]
[322616477,1713123032336,-162.38121,0.0003736,2]
[322616478,1713123032344,-400.0,0.00037393,2]
[322616479,1713123032353,-9735.43324879,0.00037395,7]
[322616480,1713123032362,-793.14808599,0.00037473,2]
[322616481,1713123032372,-628.95577567,0.0003784,2]
[322616482,1713123032381,-11372.08376129,0.0003797,4]
[322616483,1713123032390,-743.20946606,0.00038,2]
[322616484,1713123032399,-2313.06326985,0.00038,2]
[322616485,1713123032408,-308.7152819,0.00038082,2]
[322616486,1713123032417,-308.3478225,0.00038082,2]
[322616487,1713123032426,-185.84188036,0.00038254,2]
[322616488,1713123032435,-2000.0,0.00038255,2]
[322616489,1713123032444,-156.99157096,0.00038256,2]
[322616490,1713123032453,-1308.46081651,0.00038353,4]
[322616491,1713123032462,-22761.07715403,0.00038353,4]
[322616492,1713123032471,-154.87609912,0.00038353,4]
[322616493,1713123032480,-242.92908465,0.00038353,4]
[322616494,1713123032492,-3293.28998897,0.00038353,4]
[322616495,1713123032500,-249.33148648,0.00038353,4]
[322616496,1713123032509,-182.7326759,0.00038353,4]
[322616497,1713123032518,-1853.93223461,0.00038353,4]
[322616498,1713123032527,-796.46091487,0.00038353,4]
[322616499,1713123032536,-156.89474755,0.00038353,4]
[322616501,1713123032545,-498.66710547,0.00038353,4]
[322616502,1713123032554,-1317.02575411,0.00038353,4]
[322616504,1713123032563,-1341.03066834,0.00038353,4]
[322616506,1713123032572,-2797.33816361,0.00038353,120]
[322616508,1713123032581,-211.451032,0.00038354,4]
[322616510,1713123032590,-1087.97739489,0.00038354,4]
[322616512,1713123032599,-204.49032967,0.00038354,4]
[322616514,1713123032608,-500.0,0.00038354,2]
[322616516,1713123032617,-470.34138776,0.00038354,4]
[322616518,1713123032626,-326.62746288,0.00038354,4]
[322616520,1713123032635,-155.20892477,0.00038354,4]
[322616522,1713123032644,-157.38490406,0.00038354,4]
[322616524,1713123032653,-272.07037273,0.00038354,4]
[322616526,1713123032662,-156.67063917,0.00038354,4]
[322616528,1713123032671,-687.6463722,0.00038354,4]
[322616530,1713123032680,-188.75485878,0.00038354,2]
[322616532,1713123032689,-155.28265412,0.00038354,4]
[322616534,1713123032699,-154.87609912,0.00038354,4]
[322616536,1713123032707,-2937.70369238,0.00038354,4]
[322616538,1713123032716,-155.01546438,0.00038354,4]
[322616540,1713123032725,-155.08215654,0.00038354,4]
[322616542,1713123032735,-277.24658734,0.00038354,4]
[322616544,1713123032744,-473.53133438,0.00038354,4]
[322616546,1713123032754,-3738.27761337,0.00038354,4]
[322616548,1713123032763,-407.97119397,0.00038354,4]
[322616550,1713123032772,-3376.46133392,0.00038354,4]
[322616552,1713123032781,-158.59081426,0.00038354,4]
[322616554,1713123032791,-2581.83470807,0.00038354,4]
[322616556,1713123032800,-5570.46935089,0.00038354,4]
[322616558,1713123032809,-282.46191731,0.00038354,4]
[322616559,1713123032818,-155.11937585,0.00038354,4]
[322616561,1713123032828,-154.92253873,0.00038354,4]
[322616563,1713123032838,-155.430717,0.00038354,4]
[322616564,1713123032848,-200.0,0.00038354,4]
[322616565,1713123032857,-1494.36779976,0.00038354,4]
[322616566,1713123032866,-361.13014743,0.00038354,4]
[322616567,1713123032874,-1931.90571888,0.00038354,4]
[322616569,1713123032883,-59022.10944715,0.00038355,4]
[322616571,1713123032892,-232.64582417,0.00038355,15]
[322616573,1713123032901,-266.5367202,0.00038355,15]
[322616575,1713123032911,-357.81091138,0.00038355,15]
[322616577,1713123032920,-405.67865039,0.00038355,15]
[322616579,1713123032929,-414.90756403,0.00038355,15]
[322616581,1713123032938,-372.53529262,0.00038355,15]
[322616582,1713123032947,-1660.05353033,0.00038356,5]
[322616584,1713123032956,-500.0,0.00038356,7]
[322616586,1713123032966,-500.0,0.00038356,7]
[322616588,1713123032976,-500.0,0.00038356,7]
[322616590,1713123032989,-313.92283683,0.00038356,7]
[322616592,1713123032999,-151.0,0.00038356,2]
[322616594,1713123033008,-191.322643,0.00038356,2]
[322616596,1713123033018,-500.0,0.00038356,7]
[322616599,1713123033164,-595.02956315,0.00038356,7]
[322616600,1713123033175,-500.0,0.00038356,7]
[322616601,1713123033185,-500.0,0.00038356,7]
[322616602,1713123033195,-500.0,0.00038356,7]
[322616603,1713123033204,-165.53067785,0.00038356,7]
[322616604,1713123033213,-500.0,0.00038356,7]
[322616605,1713123033223,-497.27216394,0.00038356,7]
[322616606,1713123033238,-500.0,0.00038356,7]
[322616607,1713123033250,-500.0,0.00038356,7]
[322616608,1713123033259,-500.0,0.00038356,7]
[322616609,1713123033269,-500.0,0.00038356,7]
[322616610,1713123033279,-500.0,0.00038356,7]
[322616611,1713123033288,-500.0,0.00038356,7]
[322616612,1713123033297,-504.00390215,0.00038356,7]
[322616613,1713123033306,-300.0,0.00038356,7]
[322616614,1713123033315,-229.72847844,0.00038356,7]
[322616615,1713123033327,-500.0,0.00038356,7]
[322616616,1713123033336,-1000.0,0.00038356,2]
[322616617,1713123033346,-500.0,0.00038356,7]
[322616618,1713123033355,-151.0,0.00038356,2]
[322616619,1713123033364,-500.0,0.00038356,7]
[322616620,1713123033374,-500.0,0.00038356,7]
[322616621,1713123033383,-500.0,0.00038356,7]
[322616622,1713123033393,-151.0,0.00038356,2]
[322616623,1713123033402,-151.0,0.00038356,2]
[322616624,1713123033411,-664.13,0.00038356,7]
[322616625,1713123033422,-1299.87,0.00038356,7]
[322616626,1713123033432,-500.0,0.00038356,7]
[322616627,1713123033441,-500.0,0.00038356,7]
[322616628,1713123033450,-500.0,0.00038356,7]
[322616629,1713123033460,-361.07695492,0.00038356,7]
[322616630,1713123033469,-500.0,0.00038356,7]
[322616631,1713123033478,-500.0,0.00038356,7]
[322616632,1713123033492,-500.0,0.00038356,7]
[322616633,1713123033501,-500.0,0.00038356,7]
[322616634,1713123033510,-151.0,0.00038356,2]
[322616636,1713123033520,-151.0,0.00038356,2]
[322616638,1713123033528,-500.0,0.00038356,7]
[322616639,1713123033537,-500.0,0.00038356,2]
[322616642,1713123033546,-500.0,0.00038356,7]
[322616644,1713123033557,-500.0,0.00038356,7]
[322616645,1713123033566,-500.0,0.00038356,7]
[322616648,1713123033575,-500.0,0.00038356,7]
[322616649,1713123033584,-1583.67,0.00038356,7]
[322616651,1713123033594,-500.0,0.00038356,7]
[322616653,1713123033603,-500.0,0.00038356,7]
[322616655,1713123033612,-500.0,0.00038356,7]
[322616657,1713123033621,-500.0,0.00038356,7]
[322616659,1713123033630,-151.0,0.00038356,2]
[322616661,1713123033639,-151.0,0.00038356,2]
[322616663,1713123033648,-500.0,0.00038356,7]
[322616665,1713123033658,-151.0,0.00038356,2]
[322616667,1713123033668,-151.0,0.00038356,2]
[322616669,1713123033678,-151.0,0.00038356,2]
[322616671,1713123033687,-151.0,0.00038356,2]
[322616673,1713123033696,-500.0,0.00038356,7]
[322616675,1713123033705,-500.0,0.00038356,7]
[322616677,1713123033714,-500.0,0.00038356,7]
[322616678,1713123033723,-252.85215354,0.00038356,7]
[322616679,1713123033732,-500.0,0.00038356,7]
[322616680,1713123033748,-500.0,0.00038356,7]
[322616681,1713123033757,-500.0,0.00038356,7]
[322616682,1713123033767,-500.0,0.00038356,7]
[322616683,1713123033776,-500.0,0.00038356,7]
[322616684,1713123033785,-500.0,0.00038356,7]
[322616685,1713123033795,-540.25102009,0.00038356,7]
[322616687,1713123033805,-500.0,0.00038356,7]
[322616688,1713123033814,-500.0,0.00038356,7]
[322616690,1713123033824,-500.0,0.00038356,7]
[322616692,1713123033834,-564.17826585,0.00038356,7]
[322616693,1713123033843,-500.0,0.00038356,7]
[322616694,1713123033853,-500.0,0.00038356,7]
[322616695,1713123033862,-500.0,0.00038356,7]
[322616696,1713123033872,-500.0,0.00038356,7]
[322616697,1713123033881,-151.0,0.00038356,2]
[322616698,1713123033890,-151.0,0.00038356,2]
[322616699,1713123033899,-500.0,0.00038356,7]
[322616700,1713123033908,-507.55211452,0.00038356,7]
[322616701,1713123033917,-151.0,0.00038356,2]
[322616702,1713123033926,-151.0,0.00038356,2]
[322616703,1713123033935,-158.4143637,0.00038356,7]
[322616704,1713123033944,-500.0,0.00038356,7]
[322616705,1713123033953,-416.63761527,0.00038356,7]
[322616706,1713123033962,-500.0,0.00038356,7]
[322616707,1713123033972,-500.0,0.00038356,7]
[322616708,1713123033982,-647.6944343,0.00038356,7]
[322616709,1713123033995,-500.0,0.00038356,7]
[322616710,1713123034004,-500.0,0.00038356,7]
[322616711,1713123034014,-522.5565693,0.00038356,7]
[322616712,1713123034023,-500.0,0.00038356,7]
[322616713,1713123034033,-172.946672,0.00038356,2]
[322616714,1713123034041,-500.0,0.00038356,7]
[322616715,1713123034051,-500.0,0.00038356,7]
[322616716,1713123034060,-500.0,0.00038356,7]
[322616717,1713123034069,-151.0,0.00038356,2]
[322616718,1713123034078,-500.0,0.00038356,7]
[322616719,1713123034087,-151.0,0.00038356,2]
[322616720,1713123034097,-500.0,0.00038356,7]
[322616721,1713123034106,-500.0,0.00038356,7]
[322616722,1713123034117,-500.0,0.00038356,7]
[322616723,1713123034126,-500.0,0.00038356,7]
[322616724,1713123034135,-500.0,0.00038356,7]
[322616725,1713123034143,-500.0,0.00038356,7]
[322616726,1713123034153,-500.0,0.00038356,7]
[322616727,1713123034163,-500.0,0.00038356,7]
[322616728,1713123034172,-500.0,0.00038356,7]
[322616729,1713123034181,-151.0,0.00038356,2]
[322616730,1713123034190,-224.746175,0.00038356,2]
[322616731,1713123034199,-500.0,0.00038356,7]
[322616732,1713123034208,-500.0,0.00038356,7]
[322616733,1713123034218,-521.05110417,0.00038356,7]
[322616734,1713123034227,-500.0,0.00038356,7]
[322616735,1713123034242,-500.0,0.00038356,7]
[322616736,1713123034251,-500.0,0.00038356,7]
[322616737,1713123034261,-500.0,0.00038356,7]
[322616738,1713123034270,-500.0,0.00038356,7]
[322616739,1713123034280,-500.0,0.00038356,7]
[322616740,1713123034290,-1637.96,0.00038356,7]
[322616741,1713123034298,-500.0,0.00038356,7]
[322616742,1713123034308,-500.0,0.00038356,7]
[322616743,1713123034318,-1138.95391201,0.00038356,7]
[322616744,1713123034422,-917.52670106,0.00038356,7]
[322616951,1713123040275,-705.066728,0.0003614,120]
[322616953,1713123040286,-467.85668109,0.00038354,15]
[322616955,1713123040294,-187.90606758,0.00038354,15]
[322616957,1713123040303,-500.0,0.00038356,7]
[322616959,1713123040314,-500.0,0.00038356,7]
[322616961,1713123040323,-2491.12,0.00038356,7]
[322616963,1713123040331,-500.0,0.00038356,7]
[322616965,1713123040340,-549.83822899,0.00038356,7]
[322616966,1713123040349,-500.0,0.00038356,7]
[322616968,1713123040358,-500.0,0.00038356,7]
[322616970,1713123040367,-476.74019462,0.00038356,7]
[322617317,1713123046435,-59.2825231,0.00028764,2]
[322617371,1713123297493,-2000.0,0.00028763,7]
[322617372,1713123299568,-2000.0,0.00028763,7]
[322617373,1713123307508,-800.0,0.00028763,7]
[322617399,1713123648074,-232.45762186,0.00027295,2]
[322617400,1713123648086,-390.08475628,0.00027295,2]
[322617401,1713123648096,-232.45762186,0.00027295,2]
[322617411,1713123679819,-1852.54237814,0.00027295,2]
[322617433,1713123724155,-1100.0,0.00027295,2]
[322617435,1713123726800,8000.0,0.0002,3]
[322617442,1713123766941,-480.0,0.00027294,2]
[322617443,1713123794153,-5510.0,0.00027294,2]
[322617500,1713123886794,-75.12028442,0.00027294,2]
[322617501,1713123886829,-2849.75943116,0.00027295,2]
[322617502,1713123918956,-1400.0,0.00027295,2]
[322617504,1713123949106,-1832.95246398,0.00027295,2]
[322617505,1713123949713,-200.0,0.00027295,2]
[322617532,1713124028185,-518.9022578,0.00027294,2]
[322617533,1713124028205,-920.25857596,0.00027295,2]
[322617534,1713124028225,-390.08475628,0.00027295,2]
[322617535,1713124028244,-305.17544274,0.00027296,2]
[322617536,1713124028266,-164.063901,0.00027397,2]
[322617537,1713124028285,-173.468607,0.00027397,2]
[322617538,1713124028307,-528.800046,0.00037237,120]
[322617539,1713124028326,-197.17619215,0.00037972,2]
[322617540,1713124028345,-3000.0,0.00038,2]
[322617541,1713124028365,-421.6130992,0.00038082,2]
[322617542,1713124028385,-190.37462304,0.00038254,8]
[322617543,1713124028406,-1623.52813156,0.00038256,2]
[322617544,1713124028424,-185.84188035,0.00038256,2]
[322617545,1713124028444,-400.0,0.00038299,3]
[322617546,1713124028463,-400.0,0.00038299,5]
[322617547,1713124028482,-3000.0,0.000383,2]
[322617548,1713124028500,-282.38723497,0.00038354,4]
[322617549,1713124028521,-500.0,0.00038354,2]
[322617550,1713124028542,-2024.95637583,0.00038354,4]
[322617551,1713124028564,-887.82162217,0.00038354,4]
[322617552,1713124028583,-1098.03551129,0.00038354,4]
[322617554,1713124039160,-197.17619216,0.00037972,2]
[322617555,1713124039180,-988.01369747,0.00038354,4]
[322617556,1713124039199,-911.30011037,0.00038354,4]
[322617614,1713124232478,-150.0,0.00036254,2]
[322617615,1713124232487,-161.941985,0.00037081,2]
[322617616,1713124232496,-396.600034,0.00037354,120]
[322617617,1713124232506,-700.0,0.000379,2]
[322617618,1713124232516,-852.61142749,0.00038256,2]
[322617776,1713124238469,-471.40101708,0.00038256,2]
[322617786,1713124240479,-501.98208771,0.00038256,2]
[322618208,1713125228123,-562.66,0.00025,2]
[322618209,1713125234094,-37.07705095,0.00025,2]
[322618210,1713125234115,-179.032836,0.00027397,2]
[322618211,1713125234134,-211.92093943,0.000275,2]
[322618212,1713125234154,-300.0,0.00028769,2]
[322618213,1713125234174,-200.0,0.00028769,2]
[322618214,1713125234194,-316.85917362,0.0002877,2]
[322618215,1713125239085,-1244.88363973,0.0002877,2]
[322618216,1713125250121,-1836.53463039,0.0002877,2]
[322618217,1713125346132,-300.0,0.00028769,2]
[322618218,1713125346153,-16906.39586998,0.0002877,2]
[322618219,1713125346174,-420.0,0.00031646,2]
[322618220,1713125346195,-316.88831309,0.00033719,6]
[322618221,1713125346215,-278.0,0.00033728,2]
[322618222,1713125346235,-2462.343037,0.00033728,2]
[322618223,1713125346255,-250.0,0.00033819,2]
[322618224,1713125346274,-178.093244,0.00034289,2]
[322618225,1713125346293,-2495.883819,0.0003443,2]
[322618226,1713125346314,-405.99045306,0.0003481,2]
[322618227,1713125351106,-181.00954694,0.0003481,2]
[322618228,1713125351128,-316.88831305,0.00034896,7]
[322618229,1713125366026,-297.450025,0.00035616,120]
[322618230,1713125366052,-493.69597147,0.00036,2]
[322618231,1713125366075,-316.88831305,0.00036073,7]
[322618232,1713125366103,-150.0,0.00036156,2]
[322618233,1713125366124,-424.587092,0.00036981,2]
[322618234,1713125366146,-316.88831305,0.0003725,8]
[322618235,1713125366168,-626.0,0.00038292,2]
[322618236,1713125395981,197.94745985,0.00038254,2]
[322618237,1713125402963,569.0356565,0.00037654,2]
[322618238,1713125408206,237.2136,0.00038164,2]
[322618239,1713125412704,723.05170511,0.000339,2]
[322618240,1713125416114,1333.79778171,0.00038353,4]
[322618419,1713125442314,174.00546772,0.00038256,2]
[322618420,1713125442378,797.68297667,0.00031406,4]
[322618445,1713125450407,161.251722,0.00027397,2]
[322618446,1713125458828,24900.0,0.00037356,2]
[322618447,1713125460414,534.67994574,0.00038256,2]
[322618448,1713125460661,300.0,0.00038353,3]
[322618449,1713125461502,300.0,0.00038353,5]
[322618450,1713125462530,534.67994572,0.00038325,2]
[322618451,1713125463041,154.81422293,0.00038353,4]
[322618452,1713125465169,2617.86637694,0.00024034,2]
[322618453,1713125467677,284.61768547,0.00038353,2]
[322618454,1713125474262,5348.0630336,0.00037356,2]
[322618455,1713125482587,925.5318754,0.00036436,4]
[322618456,1713125484211,3288.94743693,0.00038353,4]
[322618457,1713125484678,155.44117756,0.00038353,4]
[322618458,1713125493084,697.18153639,0.00038353,4]
[322618459,1713125497002,154.81422293,0.00038353,4]
[322618460,1713125498229,154.81422293,0.00038353,4]
[322618461,1713125499467,11372.08376129,0.0003797,4]
[322618462,1713125517199,257.26565073,0.0003797,4]
[322618463,1713125517920,154.81422293,0.00038353,4]
[322618464,1713125518493,856.99408229,0.00038353,4]
[322618465,1713125529115,154.81422293,0.00038353,4]
[322618466,1713125529450,154.81422293,0.00038353,4]
[322618467,1713125538419,154.81422293,0.00038353,4]
[322618468,1713125552829,500.0,0.00038353,15]
[322618469,1713125552874,500.0,0.00038353,15]
[322618470,1713125552898,500.0,0.00038353,15]
[322618471,1713125552936,500.0,0.00038353,15]
[322618472,1713125552990,325.11292806,0.00038353,15]
[322618473,1713125553660,284.67704858,0.00038353,2]
[322618474,1713125554498,314.47056755,0.00038254,8]
[322618475,1713125556553,16057.19851658,0.00038353,4]